[Event "Early-Titled-Tuesday-Blitz-March-05-2024"]
[Site "Chess.com"]
[Date "2024.03.05"]
[Round "6"]
[White "vovachesss"]
[Black "1mbl4"]
[Result "1-0"]
[WhiteElo "2805"]
[BlackElo "2614"]
[TimeControl "180+1"]
[EndTime "9:06:49 PST"]
[Termination "vovachesss won by resignation"]

1. e4 {[%clk 0:02:57.6]} 1... c5 {[%clk 0:03:00.1]} 2. Nf3 {[%clk 0:02:56.8]}
2... Nc6 {[%clk 0:03:00.8]} 3. c3 {[%clk 0:02:57.1]} 3... Nf6 {[%clk 0:02:59.9]}
4. e5 {[%clk 0:02:57.4]} 4... Nd5 {[%clk 0:03:00.4]} 5. Bc4 {[%clk 0:02:58.1]}
5... Nb6 {[%clk 0:03:00.5]} 6. Bb3 {[%clk 0:02:58.7]} 6... d5 {[%clk 0:03:01.1]}
7. exd6 {[%clk 0:02:59.5]} 7... Qxd6 {[%clk 0:03:01.4]} 8. O-O {[%clk
0:02:58.7]} 8... Be6 {[%clk 0:03:01.1]} 9. Bxe6 {[%clk 0:02:59.3]} 9... Qxe6
{[%clk 0:03:02]} 10. a4 {[%clk 0:03:00]} 10... Qd7 {[%clk 0:02:56.4]} 11. a5
{[%clk 0:03:00.4]} 11... Nd5 {[%clk 0:02:56.7]} 12. a6 {[%clk 0:03:01]} 12... b6
{[%clk 0:02:56.2]} 13. d4 {[%clk 0:02:55.5]} 13... e6 {[%clk 0:02:55.8]} 14. Ne5
{[%clk 0:02:55.3]} 14... Nxe5 {[%clk 0:02:54.1]} 15. dxe5 {[%clk 0:02:56.2]}
15... Nc7 {[%clk 0:02:02.4]} 16. Qg4 {[%clk 0:02:53]} 16... f5 {[%clk
0:01:55.2]} 17. exf6 {[%clk 0:02:45.9]} 17... gxf6 {[%clk 0:01:56.1]} 18. Rd1
{[%clk 0:02:45.5]} 18... Qf7 {[%clk 0:01:52.2]} 19. Qf3 {[%clk 0:02:41.6]} 19...
Rd8 {[%clk 0:01:06.5]} 20. Qc6+ {[%clk 0:02:40.6]} 20... Rd7 {[%clk 0:01:07]}
21. Bf4 {[%clk 0:02:41]} 21... Nd5 {[%clk 0:01:04.7]} 22. c4 {[%clk 0:02:38.7]}
22... Qh5 {[%clk 0:00:48.3]} 23. Nc3 {[%clk 0:02:35.3]} 23... Bh6 {[%clk
0:00:35]} 24. cxd5 {[%clk 0:02:31.8]} 24... Bxf4 {[%clk 0:00:32.5]} 25. dxe6
{[%clk 0:02:30.4]} 25... Qxh2+ {[%clk 0:00:22.5]} 26. Kf1 {[%clk 0:02:30.9]}
26... Qh1+ {[%clk 0:00:22.9]} 27. Ke2 {[%clk 0:02:31.5]} 27... Qh5+ {[%clk
0:00:23.3]} 28. f3 {[%clk 0:02:26.5]} 28... O-O {[%clk 0:00:15.7]} 29. exd7
{[%clk 0:02:23.7]} 29... Qe5+ {[%clk 0:00:10.6]} 30. Kf1 {[%clk 0:02:23.4]}
30... Be3 {[%clk 0:00:11.1]} 31. Qd5+ {[%clk 0:02:20.7]} 31... Qxd5 {[%clk
0:00:11.4]} 32. Nxd5 {[%clk 0:02:20.7]} 32... Bd4 {[%clk 0:00:11.2]} 33. Ne7+
{[%clk 0:02:19.5]} 33... Kf7 {[%clk 0:00:11.3]} 34. Nc6 {[%clk 0:02:20.4]} 1-0

[Event "Early-Titled-Tuesday-Blitz-March-05-2024"]
[Site "Chess.com"]
[Date "2024.03.05"]
[Round "6"]
[White "Happy1712Drummer"]
[Black "corvachesky"]
[Result "0-1"]
[WhiteElo "2305"]
[BlackElo "2446"]
[TimeControl "180+1"]
[EndTime "9:07:00 PST"]
[Termination "corvachesky won by resignation"]

1. e4 {[%clk 0:03:00.9]} 1... c6 {[%clk 0:02:59.1]} 2. d4 {[%clk 0:03:00]} 2...
d5 {[%clk 0:02:58.7]} 3. Nd2 {[%clk 0:03:00.6]} 3... dxe4 {[%clk 0:02:58.8]} 4.
Nxe4 {[%clk 0:03:01.5]} 4... Nf6 {[%clk 0:02:59.2]} 5. Nxf6+ {[%clk 0:03:01.6]}
5... exf6 {[%clk 0:02:59.8]} 6. c3 {[%clk 0:03:02.1]} 6... Bd6 {[%clk 0:03:00]}
7. Bd3 {[%clk 0:03:02.5]} 7... O-O {[%clk 0:03:00.3]} 8. Ne2 {[%clk 0:03:00.6]}
8... Re8 {[%clk 0:03:00.9]} 9. Be3 {[%clk 0:02:59.6]} 9... Nd7 {[%clk
0:02:59.3]} 10. Qc2 {[%clk 0:02:59.6]} 10... Nf8 {[%clk 0:02:59.1]} 11. O-O-O
{[%clk 0:02:58.4]} 11... Be6 {[%clk 0:02:57.7]} 12. c4 {[%clk 0:02:51.8]} 12...
b5 {[%clk 0:02:55.3]} 13. c5 {[%clk 0:02:18.2]} 13... Be7 {[%clk 0:02:50.9]} 14.
b3 {[%clk 0:02:11.3]} 14... a5 {[%clk 0:02:49.1]} 15. Nf4 {[%clk 0:02:07.6]}
15... b4 {[%clk 0:02:43.4]} 16. Nxe6 {[%clk 0:02:05]} 16... fxe6 {[%clk
0:02:41.1]} 17. Be4 {[%clk 0:01:44.2]} 17... Qc7 {[%clk 0:02:34.2]} 18. g3
{[%clk 0:01:41.4]} 18... a4 {[%clk 0:02:32.5]} 19. Bf4 {[%clk 0:01:41.6]} 19...
axb3 {[%clk 0:02:27.2]} 20. Qxb3 {[%clk 0:01:40.8]} 20... Qb7 {[%clk 0:02:23.5]}
21. h3 {[%clk 0:01:26.3]} 21... Ra3 {[%clk 0:02:22.1]} 22. Qb2 {[%clk
0:01:24.9]} 22... Rea8 {[%clk 0:02:21.7]} 23. Kb1 {[%clk 0:01:18.6]} 23... b3
{[%clk 0:02:21.3]} 24. axb3 {[%clk 0:01:12.7]} 24... Rxb3 {[%clk 0:02:19.7]} 25.
Rd2 {[%clk 0:01:10.3]} 25... Raa3 {[%clk 0:02:09.8]} 26. Kc1 {[%clk 0:00:39.5]}
26... Rxb2 {[%clk 0:02:06.8]} 27. Rxb2 {[%clk 0:00:40.4]} 27... Ra1+ {[%clk
0:01:53]} 28. Bb1 {[%clk 0:00:38.1]} 28... Qa6 {[%clk 0:01:49.2]} 29. Rd1 {[%clk
0:00:31.6]} 29... Qa3 {[%clk 0:01:42.9]} 30. Rd3 {[%clk 0:00:29.8]} 30... Qxd3
{[%clk 0:01:41.6]} 0-1

[Event "Early-Titled-Tuesday-Blitz-March-05-2024"]
[Site "Chess.com"]
[Date "2024.03.05"]
[Round "6"]
[White "SharapovEvgeny"]
[Black "giomar27"]
[Result "1-0"]
[WhiteElo "2548"]
[BlackElo "2404"]
[TimeControl "180+1"]
[EndTime "9:07:07 PST"]
[Termination "SharapovEvgeny won by resignation"]

1. e4 {[%clk 0:03:00.1]} 1... e5 {[%clk 0:02:59.8]} 2. Nf3 {[%clk 0:03:00]} 2...
Nc6 {[%clk 0:03:00.5]} 3. Bb5 {[%clk 0:02:59.7]} 3... a6 {[%clk 0:03:00.3]} 4.
Ba4 {[%clk 0:02:59.7]} 4... Bc5 {[%clk 0:03:00.9]} 5. O-O {[%clk 0:02:59.2]}
5... Nge7 {[%clk 0:03:01]} 6. Nxe5 {[%clk 0:02:56]} 6... Nxe5 {[%clk 0:02:59.2]}
7. d4 {[%clk 0:02:56.2]} 7... b5 {[%clk 0:02:57.9]} 8. Bb3 {[%clk 0:02:54.1]}
8... Bxd4 {[%clk 0:02:58.1]} 9. Qxd4 {[%clk 0:02:53.8]} 9... d6 {[%clk
0:02:58.8]} 10. c3 {[%clk 0:02:53.3]} 10... c5 {[%clk 0:02:57.9]} 11. Qe3 {[%clk
0:02:53.3]} 11... O-O {[%clk 0:02:54.7]} 12. Qg3 {[%clk 0:02:51.5]} 12... Bb7
{[%clk 0:02:53]} 13. Nd2 {[%clk 0:02:49.9]} 13... N7g6 {[%clk 0:02:43.4]} 14. f4
{[%clk 0:02:44.3]} 14... Nc6 {[%clk 0:02:28.9]} 15. Nf3 {[%clk 0:02:38.8]} 15...
Na5 {[%clk 0:02:23.7]} 16. Bc2 {[%clk 0:02:36.2]} 16... f6 {[%clk 0:02:12.5]}
17. h4 {[%clk 0:02:31.1]} 17... Ne7 {[%clk 0:01:23]} 18. h5 {[%clk 0:02:30.2]}
18... f5 {[%clk 0:01:22.6]} 19. h6 {[%clk 0:02:25.1]} 19... g6 {[%clk
0:01:22.3]} 20. e5 {[%clk 0:02:12.1]} 20... Bxf3 {[%clk 0:01:16.9]} 21. Qxf3
{[%clk 0:02:09.3]} 21... dxe5 {[%clk 0:01:17]} 22. fxe5 {[%clk 0:02:09]} 22...
Qd5 {[%clk 0:01:17.1]} 23. Qxd5+ {[%clk 0:01:59.4]} 23... Nxd5 {[%clk
0:01:16.9]} 24. Rd1 {[%clk 0:01:59.9]} 24... Rad8 {[%clk 0:01:08.5]} 25. Bg5
{[%clk 0:01:52.7]} 25... Rd7 {[%clk 0:01:02.1]} 26. e6 {[%clk 0:01:48.4]} 26...
Rd6 {[%clk 0:01:02.5]} 27. Be7 {[%clk 0:01:44.7]} 27... Nxe7 {[%clk 0:00:58.9]}
28. Rxd6 {[%clk 0:01:43.8]} 28... Nc4 {[%clk 0:00:59.5]} 29. Rxa6 {[%clk
0:01:43.1]} 29... Ne3 {[%clk 0:00:53.4]} 30. Bd1 {[%clk 0:01:33.1]} 30... Rd8
{[%clk 0:00:52.5]} 31. Bf3 {[%clk 0:01:29.4]} 31... g5 {[%clk 0:00:50.2]} 32.
Ra8 {[%clk 0:01:27.5]} 32... Rxa8 {[%clk 0:00:47.6]} 33. Bxa8 {[%clk 0:01:27.5]}
33... f4 {[%clk 0:00:47.1]} 34. a4 {[%clk 0:01:24.5]} 1-0

[Event "Early-Titled-Tuesday-Blitz-March-05-2024"]
[Site "Chess.com"]
[Date "2024.03.05"]
[Round "6"]
[White "DuleMudule"]
[Black "ProChessWICTH"]
[Result "1-0"]
[WhiteElo "2869"]
[BlackElo "2634"]
[TimeControl "180+1"]
[EndTime "9:07:08 PST"]
[Termination "DuleMudule won by resignation"]

1. d4 {[%clk 0:03:00.9]} 1... Nf6 {[%clk 0:02:59.6]} 2. Bg5 {[%clk 0:03:01.1]}
2... Ne4 {[%clk 0:02:54.5]} 3. h4 {[%clk 0:03:00.3]} 3... g6 {[%clk 0:02:48.9]}
4. Nd2 {[%clk 0:02:58.5]} 4... Nxd2 {[%clk 0:02:40.4]} 5. Qxd2 {[%clk
0:02:59.4]} 5... d5 {[%clk 0:02:40.5]} 6. O-O-O {[%clk 0:02:54.5]} 6... Bf5
{[%clk 0:02:32.2]} 7. f3 {[%clk 0:02:53.8]} 7... h5 {[%clk 0:02:22.8]} 8. e4
{[%clk 0:02:42.1]} 8... Be6 {[%clk 0:02:13.9]} 9. c4 {[%clk 0:02:36.9]} 9... c6
{[%clk 0:02:05.6]} 10. Ne2 {[%clk 0:02:34.4]} 10... dxe4 {[%clk 0:01:50.9]} 11.
Nf4 {[%clk 0:02:32.1]} 11... Qd7 {[%clk 0:01:38.5]} 12. d5 {[%clk 0:02:23.3]}
12... Bf5 {[%clk 0:01:32.5]} 13. fxe4 {[%clk 0:02:19.4]} 13... Bg4 {[%clk
0:01:21.8]} 14. Be2 {[%clk 0:02:11.3]} 14... Bg7 {[%clk 0:01:20.5]} 15. Kb1
{[%clk 0:02:06.4]} 15... Bxe2 {[%clk 0:00:56.9]} 16. Nxe2 {[%clk 0:01:50.6]}
16... O-O {[%clk 0:00:54.5]} 17. Bh6 {[%clk 0:01:49.4]} 17... Na6 {[%clk
0:00:40]} 18. Bxg7 {[%clk 0:01:45.1]} 18... Kxg7 {[%clk 0:00:40.9]} 19. Nf4
{[%clk 0:01:43.4]} 19... Rad8 {[%clk 0:00:23.9]} 1-0

[Event "Early-Titled-Tuesday-Blitz-March-05-2024"]
[Site "Chess.com"]
[Date "2024.03.05"]
[Round "6"]
[White "effefe"]
[Black "JaackCamel"]
[Result "1-0"]
[WhiteElo "2404"]
[BlackElo "2224"]
[TimeControl "180+1"]
[EndTime "9:07:12 PST"]
[Termination "effefe won by resignation"]

1. d4 {[%clk 0:02:58.9]} 1... d5 {[%clk 0:02:58.5]} 2. c4 {[%clk 0:02:59.3]}
2... e6 {[%clk 0:02:57.9]} 3. Nc3 {[%clk 0:02:59.9]} 3... c6 {[%clk 0:02:57.5]}
4. Nf3 {[%clk 0:02:59.8]} 4... dxc4 {[%clk 0:02:56.8]} 5. e4 {[%clk 0:02:59.9]}
5... b5 {[%clk 0:02:55.4]} 6. Be2 {[%clk 0:03:00.1]} 6... Bb7 {[%clk 0:02:52.5]}
7. O-O {[%clk 0:03:00.6]} 7... Nf6 {[%clk 0:02:52.1]} 8. e5 {[%clk 0:03:00.8]}
8... Nd5 {[%clk 0:02:48.9]} 9. Ne4 {[%clk 0:03:01.5]} 9... Nd7 {[%clk
0:02:43.5]} 10. a4 {[%clk 0:02:58.1]} 10... h6 {[%clk 0:02:37.1]} 11. b3 {[%clk
0:02:49.6]} 11... b4 {[%clk 0:02:10.4]} 12. bxc4 {[%clk 0:02:44.6]} 12... Nc3
{[%clk 0:02:01.7]} 13. Nxc3 {[%clk 0:02:42.7]} 13... bxc3 {[%clk 0:02:01.7]} 14.
Qb3 {[%clk 0:02:39.4]} 14... Rb8 {[%clk 0:01:59.6]} 15. Qxc3 {[%clk 0:02:39.3]}
15... c5 {[%clk 0:01:59.7]} 16. d5 {[%clk 0:02:30.1]} 16... exd5 {[%clk
0:01:58.1]} 17. cxd5 {[%clk 0:02:31]} 17... Bxd5 {[%clk 0:01:57.5]} 18. Rd1
{[%clk 0:02:29.7]} 18... Be6 {[%clk 0:01:50.3]} 19. Bb5 {[%clk 0:02:12.7]} 19...
Be7 {[%clk 0:01:36.9]} 20. Bxd7+ {[%clk 0:02:08.9]} 20... Bxd7 {[%clk
0:01:35.7]} 21. e6 {[%clk 0:02:09.5]} 21... fxe6 {[%clk 0:01:28.6]} 22. Qxg7
{[%clk 0:02:08.7]} 22... Bf6 {[%clk 0:01:16.7]} 23. Qg6+ {[%clk 0:02:08.6]}
23... Ke7 {[%clk 0:01:12.1]} 24. Ba3 {[%clk 0:01:50.7]} 24... Qb6 {[%clk
0:00:48]} 25. Rac1 {[%clk 0:01:46.1]} 25... Rbc8 {[%clk 0:00:31.7]} 26. Rxd7+
{[%clk 0:01:43.5]} 26... Kxd7 {[%clk 0:00:30.6]} 27. Qxf6 {[%clk 0:01:44.1]}
27... Rhg8 {[%clk 0:00:28.1]} 28. Ne5+ {[%clk 0:01:39.2]} 28... Kd6 {[%clk
0:00:20.6]} 29. Nc4+ {[%clk 0:01:34.3]} 1-0

[Event "Early-Titled-Tuesday-Blitz-March-05-2024"]
[Site "Chess.com"]
[Date "2024.03.05"]
[Round "6"]
[White "Hope_6"]
[Black "Hamisandwich"]
[Result "0-1"]
[WhiteElo "2815"]
[BlackElo "2644"]
[TimeControl "180+1"]
[EndTime "9:07:16 PST"]
[Termination "Hamisandwich won by resignation"]

1. e4 {[%clk 0:02:59.6]} 1... c6 {[%clk 0:02:59.6]} 2. d4 {[%clk 0:02:59.6]}
2... d5 {[%clk 0:03:00.5]} 3. e5 {[%clk 0:02:59.8]} 3... Bf5 {[%clk 0:03:00.3]}
4. Nf3 {[%clk 0:03:00.3]} 4... e6 {[%clk 0:03:00.3]} 5. Be2 {[%clk 0:03:00.5]}
5... Nd7 {[%clk 0:02:59.5]} 6. O-O {[%clk 0:02:59.9]} 6... a5 {[%clk 0:02:59.3]}
7. a4 {[%clk 0:02:58.2]} 7... f6 {[%clk 0:02:58.7]} 8. Be3 {[%clk 0:02:57.9]}
8... fxe5 {[%clk 0:02:51.8]} 9. dxe5 {[%clk 0:02:57.4]} 9... Bc5 {[%clk
0:02:47.5]} 10. Bxc5 {[%clk 0:02:50.1]} 10... Nxc5 {[%clk 0:02:48.4]} 11. Nbd2
{[%clk 0:02:46.5]} 11... Ne7 {[%clk 0:02:44.7]} 12. Nd4 {[%clk 0:02:40.3]} 12...
O-O {[%clk 0:02:37.6]} 13. Bg4 {[%clk 0:02:31.2]} 13... Bxg4 {[%clk 0:02:33.2]}
14. Qxg4 {[%clk 0:02:32]} 14... Nf5 {[%clk 0:02:33.6]} 15. N2f3 {[%clk
0:02:18.1]} 15... Qe7 {[%clk 0:02:19.8]} 16. Rad1 {[%clk 0:02:06.5]} 16... Nxa4
{[%clk 0:02:11.9]} 17. b3 {[%clk 0:02:01.4]} 17... Nc3 {[%clk 0:01:56.6]} 18.
Ra1 {[%clk 0:01:57]} 18... c5 {[%clk 0:01:37.3]} 19. Nxf5 {[%clk 0:01:54.5]}
19... Rxf5 {[%clk 0:01:26.1]} 20. Rfe1 {[%clk 0:01:52.2]} 20... b6 {[%clk
0:01:23.8]} 21. h4 {[%clk 0:01:45.4]} 21... Raf8 {[%clk 0:01:22.4]} 22. Re3
{[%clk 0:01:41]} 22... d4 {[%clk 0:01:16.6]} 23. Ree1 {[%clk 0:01:40.5]} 23...
Rf4 {[%clk 0:01:11.7]} 24. Qh3 {[%clk 0:01:35.6]} 24... Nd5 {[%clk 0:01:07.3]}
25. Re2 {[%clk 0:01:21]} 25... Rxf3 {[%clk 0:01:07]} 26. gxf3 {[%clk 0:01:17.3]}
26... Nf4 {[%clk 0:01:07.2]} 27. Qf1 {[%clk 0:01:17.6]} 27... Qxh4 {[%clk
0:01:03.1]} 28. Qd1 {[%clk 0:00:57.8]} 28... Rf5 {[%clk 0:00:59.3]} 0-1

[Event "Early-Titled-Tuesday-Blitz-March-05-2024"]
[Site "Chess.com"]
[Date "2024.03.05"]
[Round "6"]
[White "toninhojit"]
[Black "bylavochka"]
[Result "1-0"]
[WhiteElo "2500"]
[BlackElo "2310"]
[TimeControl "180+1"]
[EndTime "9:07:16 PST"]
[Termination "toninhojit won on time"]

1. e4 {[%clk 0:03:00.9]} 1... c5 {[%clk 0:02:51.4]} 2. Nf3 {[%clk 0:03:00.1]}
2... d6 {[%clk 0:02:51.8]} 3. d4 {[%clk 0:03:00.3]} 3... cxd4 {[%clk 0:02:52.7]}
4. Nxd4 {[%clk 0:03:00.8]} 4... Nf6 {[%clk 0:02:53.2]} 5. Nc3 {[%clk 0:03:01.4]}
5... g6 {[%clk 0:02:53.7]} 6. Be3 {[%clk 0:03:01.2]} 6... Bg7 {[%clk 0:02:53.9]}
7. f3 {[%clk 0:03:02]} 7... Nc6 {[%clk 0:02:53.8]} 8. Qd2 {[%clk 0:03:02.8]}
8... O-O {[%clk 0:02:54]} 9. Bc4 {[%clk 0:03:03.4]} 9... Bd7 {[%clk 0:02:53.8]}
10. O-O-O {[%clk 0:03:03.4]} 10... Qa5 {[%clk 0:02:54]} 11. Bb3 {[%clk
0:03:03.1]} 11... Rfc8 {[%clk 0:02:54.6]} 12. h4 {[%clk 0:03:02.4]} 12... Ne5
{[%clk 0:02:54.7]} 13. h5 {[%clk 0:03:02.2]} 13... Nc4 {[%clk 0:02:53.6]} 14.
Bxc4 {[%clk 0:03:01.9]} 14... Rxc4 {[%clk 0:02:54.5]} 15. hxg6 {[%clk
0:02:53.8]} 15... fxg6 {[%clk 0:02:45.4]} 16. Nb3 {[%clk 0:02:49.2]} 16... Qd8
{[%clk 0:02:18.8]} 17. Bh6 {[%clk 0:02:34]} 17... Bh8 {[%clk 0:02:06.2]} 18. Nd5
{[%clk 0:02:28.2]} 18... Rac8 {[%clk 0:02:04.7]} 19. Nxf6+ {[%clk 0:02:26.2]}
19... Bxf6 {[%clk 0:02:05.6]} 20. c3 {[%clk 0:02:10.5]} 20... Be6 {[%clk
0:02:02.1]} 21. Kb1 {[%clk 0:02:04.5]} 21... Qb6 {[%clk 0:00:49.3]} 22. Be3
{[%clk 0:02:01.5]} 22... Qa6 {[%clk 0:00:49.5]} 23. Bd4 {[%clk 0:02:00.6]} 23...
Bxd4 {[%clk 0:00:38.5]} 24. cxd4 {[%clk 0:01:57.2]} 24... Ra4 {[%clk 0:00:18.6]}
25. d5 {[%clk 0:01:52]} 25... Bf7 {[%clk 0:00:03.2]} 26. a3 {[%clk 0:01:49.9]}
26... Qb5 {[%clk 0:00:02.1]} 27. Ka2 {[%clk 0:01:43.4]} 1-0

[Event "Early-Titled-Tuesday-Blitz-March-05-2024"]
[Site "Chess.com"]
[Date "2024.03.05"]
[Round "6"]
[White "frequentblunders"]
[Black "ploxoi"]
[Result "0-1"]
[WhiteElo "2169"]
[BlackElo "2450"]
[TimeControl "180+1"]
[EndTime "9:07:19 PST"]
[Termination "ploxoi won by resignation"]

1. d3 {[%clk 0:02:51.5]} 1... d5 {[%clk 0:02:59.3]} 2. Nf3 {[%clk 0:02:28.2]}
2... g6 {[%clk 0:02:56.4]} 3. g3 {[%clk 0:02:28]} 3... Bg7 {[%clk 0:02:56.8]} 4.
Bg2 {[%clk 0:02:28.2]} 4... Nf6 {[%clk 0:02:57.3]} 5. O-O {[%clk 0:02:27.6]}
5... O-O {[%clk 0:02:57.8]} 6. Nc3 {[%clk 0:02:26.9]} 6... c5 {[%clk 0:02:56.8]}
7. e4 {[%clk 0:02:26.8]} 7... Nc6 {[%clk 0:02:56.9]} 8. Re1 {[%clk 0:02:23.8]}
8... d4 {[%clk 0:02:57.3]} 9. Ne2 {[%clk 0:02:22.8]} 9... e5 {[%clk 0:02:57.6]}
10. a4 {[%clk 0:02:17.2]} 10... Ne8 {[%clk 0:02:57.4]} 11. h4 {[%clk 0:02:12.4]}
11... Bg4 {[%clk 0:02:53.7]} 12. Nh2 {[%clk 0:02:12]} 12... Be6 {[%clk
0:02:50.6]} 13. f4 {[%clk 0:02:08.1]} 13... Nd6 {[%clk 0:02:49.9]} 14. h5 {[%clk
0:01:57.2]} 14... Qd7 {[%clk 0:02:43.4]} 15. h6 {[%clk 0:01:46]} 15... Bxh6
{[%clk 0:02:36.4]} 16. f5 {[%clk 0:01:45.9]} 16... Bxc1 {[%clk 0:02:34.9]} 17.
fxe6 {[%clk 0:01:45]} 17... Be3+ {[%clk 0:02:34.9]} 18. Kh1 {[%clk 0:01:40.5]}
18... Qxe6 {[%clk 0:02:35.8]} 19. Ng1 {[%clk 0:01:34.2]} 19... Rae8 {[%clk
0:02:32.9]} 20. Bh3 {[%clk 0:01:27.3]} 20... Qe7 {[%clk 0:02:30.5]} 21. Ng4
{[%clk 0:01:23.9]} 21... Bg5 {[%clk 0:02:30.3]} 22. Nf3 {[%clk 0:01:17]} 22...
h5 {[%clk 0:02:30.3]} 23. Nf2 {[%clk 0:01:05.8]} 23... Be3 {[%clk 0:02:28.9]}
24. Qe2 {[%clk 0:01:02.1]} 24... Kg7 {[%clk 0:02:28]} 25. g4 {[%clk 0:00:59.8]}
25... hxg4 {[%clk 0:02:27.2]} 26. Nxg4 {[%clk 0:00:59.8]} 26... Rh8 {[%clk
0:02:27.1]} 27. Kg2 {[%clk 0:01:00.1]} 27... Bf4 {[%clk 0:02:26.5]} 28. Rh1
{[%clk 0:00:59]} 28... Nd8 {[%clk 0:02:26.7]} 29. Raf1 {[%clk 0:00:51.8]} 29...
Ne6 {[%clk 0:02:26.9]} 30. Nfxe5 {[%clk 0:00:46.3]} 30... Bxe5 {[%clk
0:02:20.2]} 31. Nxe5 {[%clk 0:00:47.2]} 31... Qg5+ {[%clk 0:02:20.5]} 32. Ng4
{[%clk 0:00:45.2]} 32... Nf4+ {[%clk 0:02:19.2]} 33. Rxf4 {[%clk 0:00:42.7]}
33... Qxf4 {[%clk 0:02:20.1]} 34. Rf1 {[%clk 0:00:42.9]} 34... Qg5 {[%clk
0:02:14.6]} 35. Qf3 {[%clk 0:00:40.6]} 35... f5 {[%clk 0:02:09]} 36. exf5 {[%clk
0:00:32.8]} 36... Nxf5 {[%clk 0:02:09.9]} 37. Qxb7+ {[%clk 0:00:31.1]} 37... Re7
{[%clk 0:02:10.6]} 38. Qc6 {[%clk 0:00:22]} 38... Ne3+ {[%clk 0:02:07.9]} 39.
Kg3 {[%clk 0:00:12.8]} 39... Rxh3+ {[%clk 0:02:07.3]} 0-1

[Event "Early-Titled-Tuesday-Blitz-March-05-2024"]
[Site "Chess.com"]
[Date "2024.03.05"]
[Round "6"]
[White "MagnusCarlsen"]
[Black "Genghis_K"]
[Result "1-0"]
[WhiteElo "3275"]
[BlackElo "2951"]
[TimeControl "180+1"]
[EndTime "9:07:25 PST"]
[Termination "MagnusCarlsen won on time"]

1. b4 {[%clk 0:02:59.2]} 1... e5 {[%clk 0:01:47.1]} 2. a3 {[%clk 0:02:58.4]}
2... d5 {[%clk 0:01:47.4]} 3. Bb2 {[%clk 0:02:58.5]} 3... Bd6 {[%clk 0:01:48.1]}
4. c4 {[%clk 0:02:58.5]} 4... c6 {[%clk 0:01:48.4]} 5. Nf3 {[%clk 0:02:58.3]}
5... Nd7 {[%clk 0:01:48.3]} 6. e3 {[%clk 0:02:54.7]} 6... Ngf6 {[%clk 0:01:48]}
7. Nc3 {[%clk 0:02:54.9]} 7... O-O {[%clk 0:01:48.3]} 8. Be2 {[%clk 0:02:55.1]}
8... e4 {[%clk 0:01:48]} 9. Nd4 {[%clk 0:02:54.5]} 9... dxc4 {[%clk 0:01:48.7]}
10. Qc2 {[%clk 0:02:48.9]} 10... Re8 {[%clk 0:01:46.6]} 11. Bxc4 {[%clk
0:02:48.6]} 11... a5 {[%clk 0:01:44.6]} 12. Ba2 {[%clk 0:02:37.1]} 12... Nf8
{[%clk 0:01:29.7]} 13. h3 {[%clk 0:02:32.6]} 13... Ng6 {[%clk 0:01:29.1]} 14. g4
{[%clk 0:02:25.8]} 14... h6 {[%clk 0:01:21.8]} 15. b5 {[%clk 0:02:24.8]} 15...
c5 {[%clk 0:01:20]} 16. Nf5 {[%clk 0:02:22.1]} 16... Bxf5 {[%clk 0:01:14.2]} 17.
gxf5 {[%clk 0:02:23]} 17... Nh4 {[%clk 0:01:14.5]} 18. O-O-O {[%clk 0:02:22.5]}
18... Nf3 {[%clk 0:01:10.5]} 19. d3 {[%clk 0:02:20.8]} 19... exd3 {[%clk
0:00:59.9]} 20. Qxd3 {[%clk 0:02:20.8]} 20... Be5 {[%clk 0:00:55]} 21. Qe2
{[%clk 0:02:12.1]} 21... Nd4 {[%clk 0:00:55.3]} 22. Qc4 {[%clk 0:02:12.3]} 22...
Qd7 {[%clk 0:00:47.6]} 23. f4 {[%clk 0:02:09.2]} 23... Qxf5 {[%clk 0:00:42.5]}
24. Bb1 {[%clk 0:02:01.2]} 24... Qxf4 {[%clk 0:00:05.3]} 25. exf4 {[%clk
0:01:59.7]} 25... Bxf4+ {[%clk 0:00:06.1]} 26. Rd2 {[%clk 0:02:00.1]} 26... Rad8
{[%clk 0:00:06.4]} 27. Rd1 {[%clk 0:01:56]} 27... Nd7 {[%clk 0:00:03.9]} 28. Ba2
{[%clk 0:01:50.3]} 28... Ne5 {[%clk 0:00:04]} 29. Qf1 {[%clk 0:01:42.3]} 29...
g5 {[%clk 0:00:01.6]} 30. Kb1 {[%clk 0:01:41.9]} 1-0